bitfinex/quotes_SOLUSD_20240530
["timestamp","ask_amount","ask_price","bid_price","bid_amount"]
[1717081552818,17.77,168.0,167.86,29.09686889]
[1717081553607,17.77,167.98,167.86,29.09686889]
[1717081555822,17.77,167.98,167.88,29.0974681]
[1717081556002,17.77,167.98,167.86,29.09686889]
[1717081556201,17.77,167.94,167.86,29.09686889]
[1717081557123,18.2406,167.95,167.86,29.09686889]
[1717081558504,18.2406,167.95,167.88,29.0974681]
[1717081558704,18.2406,167.95,167.85,0.8276984]
[1717081558705,6.0458,167.93,167.86,29.09686889]
[1717081560625,23.8158,167.93,167.86,29.09686889]
[1717081560920,6.0458,167.93,167.86,29.09686889]
[1717081561809,6.0458,167.98,167.86,31.30096889]
[1717081562127,23.8158,167.98,167.88,29.0974681]
[1717081562427,6.0458,167.98,167.88,29.0974681]
[1717081562637,6.0458,167.98,167.9,29.94445341]
[1717081563312,6.0458,167.98,167.91,45.0]
[1717081563715,6.0458,168.02,167.91,45.0]
[1717081563912,6.0458,168.02,167.92,2.2033]
[1717081564120,25.44254911,168.06,167.92,2.2033]
[1717081564510,6.0458,168.06,167.93,2.2032]
[1717081564712,6.0458,168.06,167.93,47.2032]
[1717081565127,6.0458,168.06,167.93,45.0]
[1717081565319,23.8158,168.06,167.93,45.0]
[1717081566536,6.0458,168.06,167.93,45.0]
[1717081566749,6.0458,168.06,167.92,47.2033]
[1717081567035,6.0458,168.06,167.92,45.0]
[1717081567237,6.0458,168.06,167.97,2.2026]
[1717081567402,31.96724911,168.1,167.97,2.2026]
[1717081567603,31.96724911,168.1,167.96,2.2028]
[1717081567828,12.5705,168.1,167.98,2.2026]
[1717081568229,12.5705,168.1,167.98,6.5228]
[1717081568437,12.5705,168.1,167.99,45.0]
[1717081568604,6.5247,168.1,167.99,45.0]
[1717081569008,6.5247,168.1,167.99,47.2024]
[1717081569224,6.5247,168.1,167.99,45.0]
[1717081569426,6.5247,168.1,168.0,2.2023]
[1717081569620,6.5247,168.1,168.0,62.2023]
[1717081569822,25.44254911,168.14,168.01,47.2021]
[1717081570027,25.44254911,168.14,168.01,45.0]
[1717081570320,6.0458,168.14,168.01,47.2022]
[1717081570526,6.0458,168.14,168.01,45.0]
[1717081570911,29.886729,168.14,168.01,45.0]
[1717081571330,6.0458,168.14,168.01,45.0]
[1717081572029,6.0458,168.14,167.98,6.5228]
[1717081572648,6.0458,168.14,168.0,2.2023]
[1717081572947,6.0458,168.14,167.99,2.2024]
[1717081573320,6.0458,168.14,168.0,2.2023]
[1717081573647,6.0458,168.14,168.01,2.2022]
[1717081573854,6.0458,168.14,168.0,2.2023]
[1717081574140,6.0458,168.14,168.0,4.4046]
[1717081574339,6.0458,168.14,168.02,2.2021]
[1717081574640,19.39674911,168.18,168.02,45.0]
[1717081574841,19.39674911,168.18,168.03,15.821]
[1717081575223,19.39674911,168.17,168.04,45.0]
[1717081575431,43.23704611,168.17,167.98,22.3438]
[1717081575635,6.0458,168.16,167.98,22.3438]
[1717081575939,17.77,168.15,167.98,6.5228]
[1717081576117,17.77,168.13,167.98,6.5228]
[1717081576452,6.0458,168.16,167.99,2.2023]
[1717081576750,17.77,168.14,167.98,6.5228]
[1717081576912,17.77,168.12,167.96,258.6]
[1717081577433,17.77,168.12,167.98,2.2026]
[1717081577621,12.1948,168.13,167.96,258.6]
[1717081577819,29.9648,168.13,167.98,2.2026]
[1717081578344,12.1948,168.13,168.0,2.2022]
[1717081578519,6.0458,168.16,168.01,2.2021]
[1717081578720,6.0458,168.16,168.0,2.2023]
[1717081578936,17.77,168.15,168.0,2.2023]
[1717081579143,17.77,168.15,167.99,47.2024]
[1717081579316,17.77,168.15,167.99,45.0]
[1717081579649,17.77,168.15,167.97,2.2027]
[1717081579943,17.77,168.15,167.98,2.2026]
[1717081580234,17.77,168.13,167.98,2.2026]
[1717081580439,17.77,168.15,167.96,60.0]
[1717081580650,17.77,168.15,168.0,2.2023]
[1717081580827,17.77,168.13,167.98,2.2025]
[1717081581343,17.77,168.13,167.97,2.2027]
[1717081581532,17.77,168.11,167.94,21.3761]
[1717081582119,17.77,168.09,167.94,21.3761]
[1717081582349,12.1948,168.1,167.95,2.2029]
[1717081582554,12.1948,168.1,167.96,2.2028]
[1717081583251,12.1948,168.1,167.95,2.203]
[1717081583459,12.1948,168.1,167.95,47.203]
[1717081583673,12.1948,168.1,167.96,60.0]
[1717081583865,6.0174,168.12,167.98,2.2025]
[1717081584032,6.0174,168.12,167.98,60.0]
[1717081584230,19.39674911,168.15,168.0,60.0]
[1717081584535,19.39674911,168.15,168.03,2.2019]
[1717081584735,19.39674911,168.15,168.02,23.8005]
[1717081584938,19.39674911,168.15,168.03,45.0]
[1717081586049,6.0458,168.16,168.03,47.2019]
[1717081586232,6.0458,168.16,168.03,45.0]
[1717081586434,6.0458,168.16,168.03,47.2019]
[1717081586852,6.0458,168.16,168.03,45.0]
[1717081587151,6.0458,168.16,168.03,47.2019]
[1717081587557,6.0458,168.16,168.03,105.0]
[1717081588075,6.0458,168.16,168.05,2.2016]
[1717081588366,6.0458,168.16,168.04,2.2018]
[1717081588532,6.0458,168.16,168.05,2.2017]
[1717081588729,6.0458,168.16,168.04,2.2018]
[1717081589040,6.0458,168.16,168.05,2.2016]
[1717081589946,6.0458,168.16,168.04,2.2018]
[1717081590264,6.0458,168.16,168.03,45.0]
[1717081590861,6.0458,168.16,168.02,23.8005]
[1717081591563,6.0458,168.16,168.03,2.2019]
[1717081591753,6.0458,168.16,168.04,2.2018]
[1717081591939,6.0458,168.16,168.03,45.0]
[1717081592143,6.0458,168.16,168.03,47.2019]
[1717081592558,6.0458,168.16,168.04,2.2018]
[1717081592860,6.0458,168.16,168.05,2.2016]
[1717081593163,6.0458,168.16,168.05,47.2016]
[1717081593767,6.0458,168.16,168.05,45.0]
[1717081594261,6.0458,168.16,168.02,6.5848]
[1717081594437,6.0458,168.16,168.02,8.7868]
[1717081594952,6.0458,168.16,168.02,8.7869]
[1717081595164,23.8158,168.16,168.0,2.2022]
[1717081595356,23.8158,168.16,168.01,2.2022]
[1717081595542,23.8158,168.16,168.0,2.2023]
[1717081595752,23.8158,168.16,168.01,2.2022]
[1717081596561,25.44254911,168.16,168.02,2.2021]
[1717081596764,25.44254911,168.16,168.01,47.2021]
[1717081597069,25.44254911,168.16,168.02,2.202]
[1717081597572,43.21254911,168.16,168.01,45.0]
[1717081597742,43.21254911,168.16,167.97,66.3587]
[1717081598057,23.8158,168.15,167.98,2.2025]
[1717081598453,23.8158,168.15,167.99,2.2025]
[1717081598846,19.39674911,168.16,167.98,2.2026]
[1717081598847,6.0458,168.12,167.98,2.2026]
[1717081599764,6.0458,168.12,167.97,2.2027]
[1717081600064,6.0458,168.12,167.97,47.2027]
[1717081603660,6.0458,168.12,167.98,62.2026]
[1717081603965,6.0458,168.12,167.99,45.0]
[1717081605366,17.77,168.11,167.93,21.8883]
[1717081605553,23.8158,168.08,167.92,2.2033]
[1717081605749,23.8158,168.08,167.89,6.1358]
[1717081606262,23.8158,168.08,167.92,2.2034]
[1717081606566,23.8158,168.08,167.9,290.74795341]
[1717081606776,19.39674911,168.11,167.9,290.74795341]
[1717081606777,29.9648,168.06,167.9,29.94445341]
[1717081607348,23.8158,168.05,167.89,29.12680943]
[1717081607669,6.0458,168.04,167.89,29.12680943]
[1717081607883,6.0458,168.01,167.86,31.30106889]
[1717081608183,6.0458,168.01,167.88,29.0974681]
[1717081608351,6.0458,168.01,167.87,29.52055182]
[1717081608547,6.0458,168.01,167.86,29.09686889]
[1717081610566,6.0458,168.01,167.88,29.0974681]
[1717081610870,6.0458,168.01,167.9,29.94445341]
[1717081611047,6.0458,168.01,167.91,45.0]
[1717081614772,17.77,167.99,167.86,29.09686889]
[1717081615068,36.0106,167.98,167.86,29.09686889]
[1717081616678,11.09885932,167.97,167.86,29.09686889]
[1717081616878,28.86885932,167.97,167.86,29.09686889]
[1717081617073,6.0458,167.96,167.86,29.09686889]
[1717081617255,23.8158,167.96,167.86,29.09686889]
[1717081618582,17.77,167.94,167.86,29.09686889]
[1717081618958,6.0458,167.96,167.86,29.09686889]
[1717081618959,23.8158,167.96,167.86,29.09686889]
[1717081620061,6.3510037,167.95,167.88,29.0974681]
[1717081621378,6.3510037,167.95,167.86,29.09686889]
[1717081621679,17.77,167.92,167.86,29.09686889]
[1717081622262,18.2406,167.93,167.86,29.09686889]
[1717081623390,6.0458,167.93,167.86,29.09686889]
[1717081623587,6.0458,167.93,167.87,45.0]
[1717081623763,30.1668037,167.95,167.86,29.09686889]
[1717081623764,6.0458,167.89,167.86,29.09686889]
[1717081623971,6.0458,167.93,167.86,29.09686889]
[1717081625073,6.0458,167.92,167.88,29.0974681]
[1717081625297,6.0458,167.93,167.86,29.09686889]
[1717081626464,23.8158,167.93,167.86,29.09686889]
[1717081627063,47.687877,167.93,167.86,29.09686889]
[1717081628271,36.0106,167.88,167.86,29.09686889]
[1717081628478,18.2406,167.87,167.86,29.09686889]
[1717081630187,6.0458,167.87,167.86,29.09686889]
[1717081630390,9.67997959,167.92,167.86,29.09686889]
[1717081631787,6.53129948,167.92,167.86,29.09686889]
[1717081633789,0.48549948,167.92,167.86,29.09686889]
[1717081634188,23.869991,167.95,167.86,29.09686889]
[1717081634478,6.26293824,167.96,167.88,29.0974681]
[1717081635203,24.03293824,167.96,167.86,29.09686889]
[1717081635585,29.96893824,167.96,167.86,29.09686889]
[1717081636205,17.77,167.94,167.86,29.09686889]
[1717081637185,17.77,167.95,167.86,29.09686889]
[1717081637390,6.26293824,167.96,167.86,29.09686889]
[1717081637611,6.26293824,167.96,167.88,29.0974681]
[1717081638181,0.1242542,167.95,167.88,29.0974681]
[1717081638584,0.1242542,167.95,167.86,29.09686889]
[1717081642091,23.8158,167.96,167.86,29.09686889]
[1717081642294,0.07638186,167.94,167.86,29.09686889]
[1717081644621,17.84638186,167.94,167.86,29.09686889]
[1717081646528,0.07638186,167.94,167.86,29.09686889]
[1717081647114,0.04695365,167.93,167.86,29.09686889]
[1717081647317,17.81695365,167.93,167.86,29.09686889]
[1717081648311,0.04695365,167.93,167.86,29.09686889]
[1717081650204,17.77,167.95,167.86,29.09686889]
[1717081650205,0.02886347,167.92,167.86,29.09686889]
[1717081655427,6.0458,167.87,167.86,29.09686889]
[1717081657936,6.0458,167.89,167.86,29.09686889]
[1717081658102,17.77,167.87,167.86,29.09686889]
[1717081659811,23.8158,167.87,167.86,29.09686889]
[1717081660314,41.5858,167.87,167.86,29.09686889]
[1717081661710,41.61466347,167.87,167.86,29.09686889]
[1717081667044,104.74546347,167.87,167.86,29.09686889]
[1717081668916,98.80946347,167.87,167.86,29.09686889]
[1717081669133,104.74546347,167.87,167.86,29.09686889]
[1717081671515,104.7166,167.87,167.86,29.09686889]
[1717081671715,104.74546347,167.87,167.86,29.09686889]
[1717081674244,92.55066347,167.87,167.86,29.09686889]
[1717081674948,104.74546347,167.87,167.86,29.09686889]
[1717081677728,104.70726347,167.87,167.86,29.09686889]
[1717081678039,104.70726347,167.87,167.86,29.61244924]
[1717081678341,86.90126446,167.87,167.86,29.90204184]
[1717081678642,105.14186446,167.87,167.86,29.90204184]
[1717081679524,42.01106446,167.87,167.86,29.90204184]
[1717081679719,47.94706446,167.87,167.86,29.90204184]
[1717081681431,92.94706446,167.87,167.86,29.90204184]
[1717081681626,92.91820099,167.87,167.86,29.90204184]
[1717081681832,92.94706446,167.87,167.86,29.90204184]
[1717081682047,87.01106446,167.87,167.86,29.90204184]
[1717081682340,92.94706446,167.87,167.86,29.90204184]
[1717081685443,122.40126446,167.87,167.85,0.8276984]
[1717081685746,122.40126446,167.87,167.74,0.3344604]
[1717081685747,63.19526446,167.87,167.75,26.12419848]
[1717081685952,17.77,167.83,167.75,29.66349668]
[1717081686152,35.5,167.88,167.75,29.66349668]
[1717081686439,3.10368871,167.9,167.75,29.41226038]
[1717081686654,12.1948,167.82,167.69,29.0996261]
[1717081687038,5.936,167.93,167.69,29.0996261]
[1717081687217,5.936,167.84,167.69,29.0996261]
[1717081687931,17.77,167.8,167.69,29.0996261]
[1717081688138,5.936,167.86,167.69,29.0996261]
[1717081688936,5.936,167.86,167.71,29.33473157]
[1717081690537,5.936,167.84,167.69,29.53550959]
[1717081691131,5.936,167.82,167.69,29.53550959]
[1717081691631,6.20737743,167.97,167.71,29.33473157]
[1717081691830,258.6,167.9,167.71,29.33473157]
[1717081692156,60.0,167.86,167.71,29.33473157]
[1717081692331,5.936,167.85,167.71,29.33473157]
[1717081692534,5.936,167.84,167.71,29.33473157]
[1717081692743,60.0,167.88,167.71,29.33473157]
[1717081693235,5.936,167.87,167.71,29.33473157]
[1717081693637,5.936,167.89,167.71,29.33473157]
[1717081693835,5.936,167.89,167.73,29.48021757]
[1717081696631,5.936,167.89,167.71,29.33473157]
[1717081696826,30.0,167.79,167.71,29.33473157]
[1717081697033,24.077,167.79,167.71,29.33473157]
[1717081697338,5.936,167.89,167.71,29.33473157]
[1717081698453,24.077,167.78,167.71,29.33473157]
[1717081698651,18.154,167.78,167.71,29.33473157]
[1717081698856,12.231,167.78,167.71,29.33473157]
[1717081699041,6.308,167.78,167.71,29.33473157]
[1717081699233,5.936,167.87,167.71,29.33473157]
[1717081700255,5.936,167.89,167.71,29.33473157]
[1717081703563,5.936,167.89,167.73,29.48021757]
[1717081704151,17.77,167.86,167.73,29.48021757]
[1717081704362,17.77,167.84,167.73,29.48021757]
[1717081706864,17.77,167.84,167.72,6.0462]
[1717081706865,17.77,167.84,167.75,29.25657159]
[1717081707537,17.77,167.86,167.75,29.25657159]
[1717081708461,5.936,167.87,167.75,29.25657159]
[1717081708638,17.77,167.86,167.75,29.25657159]
[1717081709558,23.706,167.86,167.75,29.25657159]
[1717081715548,23.706,167.86,167.77,29.48830568]
[1717081717646,23.706,167.86,167.75,35.50497159]
[1717081723572,23.706,167.86,167.78,6.2641]
[1717081723973,17.77,167.85,167.79,29.01364494]
[1717081725167,17.77,167.88,167.79,29.01364494]
[1717081725671,23.706,167.88,167.79,29.01364494]
[1717081730764,17.77,167.89,167.79,29.01364494]
[1717081730955,17.77,167.89,167.78,6.2641]
[1717081730956,23.706,167.89,167.81,29.28747983]
[1717081731288,17.77,167.89,167.83,29.12127804]
[1717081734896,20.31209617,167.89,167.83,29.12127804]
[1717081735973,20.31209617,167.89,167.82,6.1659]
[1717081737220,20.31209617,167.89,167.83,15.6807]
[1717081743579,17.77,167.92,167.84,6.0766]
[1717081743824,258.6,168.05,167.86,15.6042]
[1717081744004,258.6,168.05,167.87,6.0766]
[1717081744781,23.706,168.02,167.88,16.4627]
[1717081745716,17.77,167.98,167.88,16.4627]
[1717081746897,17.77,168.01,167.88,16.4627]
[1717081748488,17.77,168.01,167.89,6.4079]
[1717081749585,17.77,168.01,167.9,15.0929]
[1717081750007,17.77,168.0,167.9,15.0929]
[1717081751188,17.77,168.01,167.9,15.0929]
[1717081754896,23.736,167.99,167.9,15.0929]
[1717081755909,258.6,168.05,167.9,15.0929]
[1717081755910,23.736,167.96,167.9,15.0929]
[1717081758589,23.736,167.96,167.89,6.4079]
[1717081761510,17.77,168.01,167.89,6.4079]
[1717081761814,17.77,167.95,167.89,6.4079]
[1717081762511,17.77,167.93,167.89,6.4079]
[1717081763493,5.966,168.01,167.89,6.4079]
[1717081763693,23.736,167.96,167.89,6.4079]
[1717081763991,23.736,167.96,167.86,16.108]
[1717081768223,17.77,167.95,167.87,6.4798]
[1717081769123,17.77,167.94,167.87,6.4798]
[1717081769325,5.966,168.01,167.91,6.6013]
[1717081769522,258.6,168.05,167.92,15.3789]
[1717081769523,17.77,168.0,167.92,15.3789]
[1717081770217,17.77,168.04,167.92,15.3789]
[1717081771620,23.736,168.04,167.92,15.3789]
[1717081777131,23.736,168.04,167.93,6.0807]
[1717081777423,17.77,168.04,167.94,16.4304]
[1717081779530,17.77,168.04,167.95,6.1994]
[1717081779737,17.77,168.03,167.95,6.1994]
[1717081780729,648.6,168.12,167.95,6.1994]
[1717081780730,17.77,168.08,167.96,15.7964]
[1717081781532,17.77,168.08,167.97,6.5943]
[1717081781842,17.77,168.08,167.98,15.2583]
[1717081782707,17.77,168.07,167.98,15.2583]
[1717081783834,17.77,168.08,167.98,15.2583]
[1717081784618,23.736,168.06,167.98,15.2583]
[1717081788117,648.6,168.12,167.98,15.2583]
[1717081788118,17.77,168.05,167.98,15.2583]
[1717081788627,23.736,168.05,167.98,15.2583]
[1717081789538,23.736,168.09,167.98,15.2583]
[1717081790331,23.736,168.09,167.99,6.1062]
[1717081791428,17.77,168.08,167.99,6.1062]
[1717081792440,17.77,168.11,167.99,6.1062]
[1717081793236,17.77,168.11,168.01,6.42]
[1717081793927,17.77,168.11,168.03,6.2479]
[1717081795117,17.77,168.11,168.04,16.6109]
[1717081795325,17.77,168.11,168.05,6.3553]
[1717081795517,7.3151233,168.2,168.05,6.3553]
[1717081795518,17.77,168.15,168.05,6.3553]
[1717081796618,5.966,168.19,168.05,6.3553]
[1717081796619,17.77,168.14,168.05,6.3553]
[1717081797847,17.77,168.18,168.05,6.3553]
[1717081800343,23.736,168.16,168.05,6.3553]
[1717081800543,17.77,168.12,168.05,6.3553]
[1717081801545,17.77,168.16,168.05,6.3553]
[1717081801922,23.736,168.14,168.05,6.3553]
[1717081802420,17.77,168.14,168.05,6.3553]
[1717081803047,17.77,168.19,168.05,6.3553]
[1717081803546,23.736,168.15,168.05,6.3553]
[1717081805128,17.77,168.13,168.05,6.3553]
[1717081806260,23.736,168.18,168.05,6.3553]
[1717081807336,23.736,168.19,168.05,6.3553]
[1717081807529,17.77,168.19,168.05,6.3553]
[1717081808462,23.736,168.19,168.05,6.3553]
[1717081811558,23.736,168.19,168.06,15.1291]
[1717081811964,23.736,168.19,168.07,6.0642]
[1717081812475,17.77,168.18,168.1,16.5918]
[1717081813440,258.6,168.22,168.1,16.5918]
[1717081813441,17.77,168.17,168.1,16.5918]
[1717081813640,23.736,168.17,168.1,16.5918]
[1717081813910,23.736,168.17,168.06,15.1428]
[1717081814171,83.736,168.17,168.05,6.3874]
[1717081814377,23.736,168.15,168.05,6.3874]
[1717081814554,83.736,168.15,168.02,16.2905]
[1717081814739,23.736,168.09,168.02,16.2905]
[1717081814940,23.736,168.09,167.98,16.2905]
[1717081814941,282.336,168.09,167.98,16.2905]
[1717081815663,23.736,168.07,167.98,16.2905]
[1717081815854,17.77,168.07,167.98,16.2905]
[1717081816059,17.77,168.07,167.99,6.4661]
[1717081816659,17.77,168.09,168.01,6.4661]
[1717081816853,17.77,168.08,168.01,6.4661]
[1717081817056,5.966,168.15,168.01,6.4661]
[1717081817259,5.966,168.15,168.03,6.5846]
[1717081817665,23.736,168.14,168.03,6.5846]
[1717081829969,23.736,168.14,168.05,6.0508]
[1717081837795,47.77,168.06,168.05,6.0508]
[1717081838093,47.77,168.06,168.04,15.8278]
[1717081838507,47.77,168.06,168.02,22.8508]
[1717081839206,17.77,168.04,168.02,22.8508]
[1717081839406,17.77,168.04,168.03,6.3157]
[1717081840113,17.77,168.05,168.03,6.3157]
[1717081840898,17.77,168.05,168.04,21.3008]
[1717081841986,17.77,168.13,168.04,21.3008]
[1717081843205,23.736,168.13,168.04,21.3008]
[1717081843607,17.77,168.14,168.04,21.3008]
[1717081846095,258.6,168.16,168.04,21.3008]
[1717081846096,17.77,168.13,168.04,21.3008]
[1717081847004,17.77,168.14,168.04,21.3008]
[1717081850103,17.77,168.14,168.07,6.1926]
[1717081850298,276.37,168.16,168.08,16.6588]
[1717081850500,17.77,168.16,168.09,6.1926]
[1717081851307,1.31080723,168.19,168.09,6.1926]
[1717081852023,17.77,168.2,168.11,6.1042]
[1717081852236,40.30657655,168.22,168.11,6.1042]
[1717081852237,17.77,168.19,168.11,6.1042]
[1717081853298,23.736,168.21,168.11,6.1042]
[1717081856323,23.736,168.21,168.13,6.5552]
[1717081856501,17.77,168.22,168.13,6.5552]
[1717081857517,23.736,168.26,168.13,6.5552]
[1717081858417,17.77,168.26,168.15,6.3898]
[1717081858597,17.77,168.25,168.15,6.3898]
[1717081859325,23.736,168.23,168.15,6.3898]
[1717081859827,17.77,168.23,168.15,6.3898]
[1717081860321,18.5976984,168.27,168.15,6.3898]
[1717081860627,23.736,168.25,168.15,6.3898]
[1717081863005,17.77,168.21,168.15,6.3898]
[1717081864327,23.736,168.22,168.15,6.3898]
[1717081866434,23.736,168.22,168.11,6.2113]
[1717081869813,17.77,168.21,168.12,15.713]
[1717081870012,17.5868,168.16,167.99,35.5]
[1717081870241,17.77,168.21,168.01,35.5]
[1717081870437,17.5868,168.16,168.03,35.5]
[1717081870621,17.5868,168.16,168.04,45.0]
[1717081870933,17.5868,168.16,168.05,35.5]
[1717081871130,17.5868,168.16,168.07,35.5]
[1717081871322,17.5868,168.16,168.09,35.5]
[1717081871928,17.5868,168.16,168.06,45.0]
[1717081872123,17.5868,168.16,168.07,35.5]
[1717081872442,17.5868,168.16,168.08,80.5]
[1717081872745,12.9697,168.09,168.08,35.5]
[1717081873042,12.9697,168.09,168.08,80.5]
[1717081879233,17.5868,168.16,168.08,80.5]
[1717081879422,17.5868,168.16,168.09,45.0]
[1717081879630,20.46,168.1,168.09,45.0]
[1717081881757,20.46,168.1,168.09,50.3266]
[1717081882542,15.1334,168.1,168.09,80.5]
[1717081883953,15.1334,168.1,168.09,83.06043437]
[1717081884151,20.46,168.24,168.09,83.06043437]
[1717081884352,20.46,168.14,168.09,83.06043437]
[1717081884762,20.46,168.14,168.1,2.56028206]
[1717081886356,20.46,168.24,168.1,2.56028206]
[1717081886357,20.46,168.17,168.12,35.5]
[1717081886664,20.46,168.17,168.14,35.5]
[1717081886836,20.46,168.17,168.15,83.05952075]
[1717081887040,20.46,168.17,168.16,45.0]
[1717081888563,20.46,168.17,168.16,80.5]
[1717081889259,20.46,168.24,168.16,80.5]
[1717081889451,20.46,168.17,168.16,80.5]
[1717081889640,20.41,168.17,168.16,80.5]
[1717081894543,20.41,168.24,168.16,80.5]
[1717081894867,20.41,168.18,168.16,80.5]
[1717081895768,20.41,168.18,168.17,2.55921635]
[1717081897239,20.41,168.18,168.14,35.5]
[1717081897443,20.41,168.15,168.14,35.5]
[1717081898259,20.41,168.15,168.1,35.5]
[1717081899344,20.41,168.24,168.12,35.5]
[1717081899556,20.41,168.15,168.14,35.5]
[1717081899762,20.41,168.15,168.14,80.5]
[1717081900765,20.41,168.15,168.14,45.0]
[1717081900967,20.41,168.15,168.13,45.0]
[1717081901766,20.41,168.15,168.06,35.5]
[1717081901957,20.41,168.15,168.01,258.6]
[1717081901958,20.41,168.09,168.02,35.5]
[1717081902566,20.41,168.16,168.02,35.5]
[1717081902769,20.41,168.07,168.02,35.5]
[1717081903087,20.41,168.07,168.02,53.27]
[1717081903652,20.41,168.07,168.04,35.5]
[1717081903871,20.41,168.07,168.06,35.5]
[1717081904155,20.41,168.07,168.06,80.5]
[1717081909469,20.41,168.16,168.06,80.5]
[1717081909470,20.41,168.1,168.06,80.5]
[1717081909672,20.41,168.1,168.08,35.5]
[1717081910080,20.41,168.1,168.09,80.5]
[1717081919381,21.5943,168.22,168.09,80.5]
[1717081919785,20.41,168.15,168.09,80.5]
[1717081919986,20.41,168.15,168.09,98.27]
[1717081926187,20.41,168.15,168.09,53.27]
[1717081926391,27.2,168.16,168.09,53.27]
[1717081927076,27.2,168.16,168.09,35.5]
[1717081927310,6.8,168.1,168.07,17.77]
[1717081927473,27.2,168.16,168.08,35.5]
[1717081927677,6.8,168.09,168.08,35.5]
[1717081928592,27.2,168.16,168.08,98.27]
[1717081928909,27.2,168.16,168.1,35.5]
[1717081929116,6.8,168.11,168.1,35.5]
[1717081929283,6.8,168.11,168.1,80.5]
[1717081930417,6.2362,168.22,168.1,98.27]
[1717081930721,27.2,168.16,168.12,35.5]
[1717081931003,27.2,168.16,168.14,35.5]
[1717081931196,27.2,168.16,168.15,80.5]
[1717081931383,34.0,168.16,168.15,35.5]
[1717081931710,34.0,168.16,168.15,80.5]
[1717081932087,34.0,168.16,168.09,17.77]
[1717081932295,6.8,168.1,168.09,53.27]
[1717081932918,6.2362,168.22,168.09,53.27]
[1717081933117,6.8,168.1,168.09,53.27]
[1717081934307,6.8,168.1,168.09,98.27]
[1717081934912,27.2,168.16,168.09,98.27]
[1717081935086,27.2,168.16,168.11,53.27]
[1717081935288,27.2,168.16,168.13,35.5]
[1717081935589,6.8,168.14,168.13,35.5]
[1717081936288,6.8,168.14,168.12,35.5]
[1717081936488,6.8,168.13,168.12,35.5]
[1717081936787,6.8,168.13,168.12,80.5]
[1717081937089,27.2,168.16,168.12,80.5]
[1717081937288,27.2,168.16,168.14,35.5]
[1717081937488,6.8,168.15,168.14,35.5]
[1717081937684,6.8,168.15,168.14,80.5]
[1717081939913,6.8,168.15,168.11,53.27]
[1717081940125,27.2,168.16,168.12,80.5]
[1717081940332,6.8,168.13,168.12,98.27]
[1717081940845,6.8,168.13,168.12,80.5]
[1717081941431,27.2,168.16,168.12,80.5]
[1717081941639,6.8,168.13,168.12,80.5]
[1717081942458,6.8,168.13,168.12,98.27]
[1717081951847,6.2362,168.22,168.12,98.27]
[1717081952053,6.8,168.13,168.12,98.27]
[1717081954257,5.8,168.13,168.12,98.27]
[1717081955631,5.3,168.13,168.12,98.27]
[1717081956346,3.8,168.13,168.12,98.27]
[1717081957266,6.2362,168.22,168.12,98.27]
[1717081957432,6.8,168.13,168.12,98.27]
[1717081959965,6.2362,168.22,168.12,98.27]